bitfinex-derivatives/quotes_BTCF0:USTF0_20240814
["timestamp","ask_amount","ask_price","bid_price","bid_amount"]
[1723624663100,0.01,60929.0,60928.0,0.15557144]
[1723624663296,0.01,60929.0,60928.0,0.1642788]
[1723624664194,0.01,60929.0,60928.0,0.09879413]
[1723624664805,0.012,60929.0,60928.0,0.09879413]
[1723624665103,0.012,60929.0,60928.0,0.1642788]
[1723624665497,0.012,60929.0,60928.0,0.01676213]
[1723624665693,0.012,60929.0,60926.0,0.06548467]
[1723624665897,0.1349,60928.0,60926.0,0.06548467]
[1723624666402,0.1349,60928.0,60925.0,0.50832067]
[1723624667303,0.1349,60928.0,60926.0,0.06548467]
[1723624667507,0.1349,60928.0,60926.0,0.14751867]
[1723624668103,0.216932,60928.0,60926.0,0.14751867]
[1723624669809,0.216932,60928.0,60926.0,0.14851867]
[1723624677515,0.08186479,60927.0,60926.0,0.083034]
[1723624678015,0.08186479,60927.0,60926.0,0.196534]
[1723624680217,0.216932,60928.0,60926.0,0.196534]
[1723624680521,0.02659147,60927.0,60926.0,0.1145]
[1723624681618,0.02659273,60927.0,60926.0,0.1145]
[1723624682222,0.12483048,60927.0,60926.0,0.001]
[1723624684119,0.12490264,60927.0,60926.0,0.001]
[1723624685219,0.02659273,60927.0,60926.0,0.001]
[1723624685426,0.57945101,60928.0,60926.0,0.001]
[1723624685624,0.577731,60928.0,60927.0,0.06556738]
[1723624686122,0.64328645,60928.0,60926.0,0.001]
[1723624686423,0.57608645,60928.0,60926.0,0.083033]
[1723624686809,0.57608645,60928.0,60926.0,0.082033]
[1723624687014,0.57608645,60928.0,60926.0,0.083033]
[1723624687817,0.082032,60927.0,60926.0,0.001]
[1723624688022,0.082032,60927.0,60922.0,0.08217825]
[1723624688023,0.082038,60923.0,60922.0,0.08217825]
[1723624688223,0.082038,60923.0,60922.0,0.00024609]
[1723624688224,0.556338,60923.0,60922.0,0.00024609]
[1723624688417,0.62193537,60923.0,60922.0,0.00024609]
[1723624689328,0.62193537,60923.0,60922.0,0.07507172]
[1723624689329,0.442838,60923.0,60922.0,0.07507172]
[1723624689517,0.442838,60923.0,60922.0,0.0658407]
[1723624689917,0.442838,60923.0,60922.0,0.07490484]
[1723624690615,0.443838,60923.0,60922.0,0.07590484]
[1723624691213,0.444838,60923.0,60922.0,0.07590484]
[1723624691417,0.444838,60923.0,60922.0,0.00124609]
[1723624691618,0.51043537,60923.0,60922.0,0.00124609]
[1723624692413,0.51043537,60923.0,60922.0,0.11474609]
[1723624692611,0.443838,60923.0,60922.0,0.11474609]
[1723624693014,0.443838,60923.0,60922.0,0.11374609]
[1723624693822,0.443838,60923.0,60922.0,0.00024609]
[1723624694422,0.59147337,60923.0,60922.0,0.04941402]
[1723624694623,1.25424,60923.0,60919.0,0.04916793]
[1723624694816,0.082043,60919.0,60918.0,0.04916793]
[1723624695022,0.082047,60916.0,60915.0,0.04916793]
[1723624695321,0.082047,60916.0,60914.0,0.05813593]
[1723624695322,0.082048,60915.0,60914.0,0.05813593]
[1723624695531,0.442848,60915.0,60914.0,0.0089841]
[1723624695828,0.442848,60915.0,60911.0,0.17909461]
[1723624696028,0.442848,60915.0,60914.0,0.04915245]
[1723624696327,0.442848,60915.0,60914.0,0.16265245]
[1723624696519,0.442848,60915.0,60914.0,0.1135]
[1723624697128,0.002,60915.0,60914.0,0.19555]
[1723624700629,0.002,60915.0,60914.0,0.24466144]
[1723624700838,0.002,60915.0,60914.0,0.19555]
[1723624701232,0.002,60915.0,60914.0,0.24465904]
[1723624704531,0.002,60915.0,60914.0,0.19555]
[1723624705729,0.002,60915.0,60914.0,0.24465934]
[1723624707450,0.002,60915.0,60914.0,0.19555]
[1723624712743,0.002,67734.0,60914.0,0.2635]
[1723624712744,0.3608,60933.0,60914.0,0.2635]
[1723624713048,0.408815,60941.0,60921.0,0.1135]
[1723624713049,0.3608,60923.0,60921.0,0.1135]
[1723624713353,0.556339,60923.0,60922.0,0.00815026]
[1723624713544,0.556339,60923.0,60920.0,0.082041]
[1723624713850,0.556339,60923.0,60920.0,0.09093951]
[1723624714348,0.3608,60923.0,60921.0,0.1135]
[1723624714847,0.3608,60923.0,60922.0,0.082039]
[1723624715342,0.3608,60923.0,60922.0,0.09029673]
[1723624716756,0.3628,60923.0,60922.0,0.09029673]
[1723624717052,0.3638,60923.0,60922.0,0.09029673]
[1723624717552,0.003,60923.0,60922.0,0.45109673]
[1723624717947,0.004,60923.0,60922.0,0.45109673]
[1723624718648,0.004,60923.0,60922.0,0.61883356]
[1723624718845,0.004,60923.0,60922.0,0.53694978]
[1723624719047,0.00024609,60928.0,60927.0,0.082032]
[1723624719351,0.00024609,60928.0,60927.0,0.345532]
[1723624719553,0.00024609,60928.0,60927.0,0.837932]
[1723624719945,0.00024609,60928.0,60927.0,0.195532]
[1723624721045,0.00024609,60928.0,60927.0,0.20461276]
[1723624723860,0.00024609,60928.0,60927.0,0.25367579]
[1723624725353,0.00024609,60928.0,60927.0,0.20461276]
[1723624725659,0.00024609,60928.0,60927.0,0.00908076]
[1723624725859,0.10678147,60930.0,60924.0,0.04906303]
[1723624726150,0.442826,60932.0,60924.0,0.00892038]
[1723624726151,0.1135,60925.0,60924.0,0.00892038]
[1723624726354,0.1135,60925.0,60921.0,0.13134812]
[1723624726554,0.0675,60925.0,60923.0,0.1135]
[1723624727555,0.0675,60925.0,60923.0,0.195537]
[1723624728055,0.195536,60924.0,60922.0,0.04906303]
[1723624728352,0.146836,60924.0,60923.0,0.1135]
[1723624729755,0.001,60925.0,60924.0,0.082036]
[1723624730149,0.001,60925.0,60924.0,0.15045337]
[1723624730745,0.00024609,60930.0,60924.0,0.06841737]
[1723624730947,0.00024609,60930.0,60929.0,0.1135]
[1723624731950,0.00024609,60930.0,60929.0,0.1625842]
[1723624732153,0.00024609,60930.0,60929.0,0.2446142]
[1723624732859,0.00024609,60930.0,60929.0,0.19553]
[1723624733463,0.00224609,60930.0,60929.0,0.19553]
[1723624734153,0.00424609,60930.0,60929.0,0.19553]
[1723624735562,0.08627409,60930.0,60929.0,0.1135]
[1723624735864,0.06968618,60930.0,60927.0,0.06541737]
[1723624736157,0.1135,60929.0,60927.0,0.06541737]
[1723624736362,0.26097009,60929.0,60928.0,0.06541737]
[1723624736563,0.14747009,60929.0,60928.0,0.06541737]
[1723624737757,0.082032,60927.0,60926.0,0.17891737]
[1723624737951,0.442832,60927.0,60926.0,0.16268628]
[1723624739964,0.442832,60927.0,60926.0,0.1135]
[1723624741354,0.442832,60927.0,60926.0,0.1165]
[1723624741355,0.443832,60927.0,60926.0,0.1165]
[1723624741756,0.444832,60927.0,60926.0,0.1165]
[1723624741957,0.52663211,60927.0,60926.0,0.1165]
[1723624744966,0.444832,60927.0,60926.0,0.1165]
[1723624745167,0.444832,60927.0,60926.0,0.003]
[1723624747868,0.082034,60926.0,60925.0,0.06541737]
[1723624748059,0.195534,60926.0,60925.0,0.06541737]
[1723624750865,0.082034,60926.0,60925.0,0.06541737]
[1723624751159,0.082034,60926.0,60925.0,0.17891737]
[1723624751667,0.082034,60926.0,60925.0,0.18191737]
[1723624752257,0.082034,60926.0,60925.0,0.17891737]
[1723624752468,0.082034,60926.0,60925.0,0.1135]
[1723624753570,0.6059,60926.0,60925.0,0.04919537]
[1723624753958,0.57420011,60926.0,60924.0,0.16269537]
[1723624754161,0.00024609,60930.0,60929.0,0.082029]
[1723624754362,0.00024609,60930.0,60929.0,0.4743]
[1723624754571,0.00024609,60930.0,60929.0,0.55627475]
[1723624754767,0.00024609,60930.0,60929.0,0.64795593]
[1723624754963,0.00024609,60930.0,60929.0,0.64798106]
[1723624755266,0.00024609,60930.0,60929.0,0.4743]
[1723624756166,0.00024609,60930.0,60929.0,0.3608]
[1723624756357,0.00024609,60930.0,60925.0,0.001]
[1723624756358,0.42657754,60930.0,60928.0,0.06557526]
[1723624756565,0.1135,60929.0,60927.0,0.06557526]
[1723624756765,0.17903145,60929.0,60927.0,0.06557526]
[1723624757559,0.17903145,60929.0,60926.0,0.06557526]
[1723624757560,0.082031,60928.0,60926.0,0.06557526]
[1723624757763,0.17903145,60927.0,60926.0,0.06557526]
[1723624758072,0.1135,60927.0,60925.0,0.06657526]
[1723624758263,1.087932,60927.0,60926.0,0.04918907]
[1723624758568,1.087932,60927.0,60925.0,0.001]
[1723624758569,0.574434,60926.0,60925.0,0.001]
[1723624758970,0.082035,60925.0,60924.0,0.04918907]
[1723624759171,0.4924,60926.0,60923.0,0.04918907]
[1723624759172,0.082036,60924.0,60923.0,0.04918907]
[1723624759366,0.556336,60924.0,60923.0,0.04918907]
[1723624761479,0.558336,60924.0,60923.0,0.04918907]
[1723624764261,0.640372,60924.0,60923.0,0.04918907]
[1723624764463,0.082038,60923.0,60922.0,0.04918907]
[1723624764773,0.082039,60922.0,60921.0,0.04943516]
[1723624764972,0.082039,60922.0,60921.0,0.00024609]
[1723624767175,0.14751077,60922.0,60921.0,0.00024609]
[1723624767875,0.082039,60922.0,60921.0,0.00124609]
[1723624768077,0.082039,60922.0,60921.0,0.00224609]
[1723624769078,0.09104813,60922.0,60921.0,0.00224609]
[1723624769381,0.45184813,60922.0,60921.0,0.00224609]
[1723624770172,0.51731123,60922.0,60921.0,0.00224609]
[1723624770683,0.45184813,60922.0,60921.0,0.00224609]
[1723624771271,0.5083015,60922.0,60921.0,0.11574609]
[1723624771585,0.3608,60922.0,60921.0,0.24697516]
[1723624772267,0.3608,60922.0,60921.0,0.24497516]
[1723624772869,0.3608,60922.0,60921.0,0.19578609]
[1723624773781,0.3608,60922.0,60921.0,0.26136135]
[1723624774169,0.3608,60922.0,60921.0,0.19578609]
[1723624774379,0.3608,60922.0,60921.0,0.26136135]
[1723624775181,0.3608,60922.0,60921.0,0.19578609]
[1723624776585,0.3608,60922.0,60921.0,0.19878609]
[1723624776883,0.3618,60922.0,60921.0,0.19878609]
[1723624777678,0.082047,60916.0,60900.0,0.11462374]
[1723624777873,0.082061,60906.0,60889.0,0.00820964]
[1723624778183,0.164156,60893.0,60878.0,0.00811115]
[1723624778483,1.131136,60893.0,60879.0,0.1135]
[1723624778782,1.531136,60893.0,60886.0,0.16404662]
[1723624778986,1.53127619,60893.0,60886.0,0.16404662]
[1723624779983,1.70167619,60893.0,60886.0,0.16404662]
[1723624781486,1.70267619,60893.0,60892.0,0.06193038]
[1723624781788,1.76267619,60893.0,60892.0,3.8e-07]
[1723624781995,1.76367619,60893.0,60892.0,3.8e-07]
[1723624782581,0.164174,60887.0,60886.0,0.16404662]
[1723624782785,0.52512963,60887.0,60886.0,0.16404662]
[1723624782992,1.41784963,60887.0,60886.0,0.16404662]
[1723624783292,1.01784963,60887.0,60886.0,0.0002463]
[1723624784891,1.41784963,60887.0,60886.0,0.0002463]
[1723624785078,1.41984963,60887.0,60886.0,0.0002463]
[1723624785284,1.70374963,60887.0,60886.0,0.0002463]
[1723624787795,1.78583663,60887.0,60886.0,0.0002463]
[1723624788093,1.90583663,60887.0,60886.0,0.0002463]
[1723624790791,1.90583663,60887.0,60886.0,0.00013772]
[1723624790987,1.90483663,60887.0,60886.0,0.00013772]
[1723624791192,1.91083663,60887.0,60886.0,0.00013772]
[1723624791389,1.91283663,60887.0,60886.0,0.00013772]
[1723624791793,1.90683663,60887.0,60886.0,0.00013772]
[1723624791992,1.91683663,60887.0,60886.0,0.00013772]
[1723624793683,1.91383663,60887.0,60886.0,0.00013772]
[1723624794690,1.91383663,60887.0,60868.0,0.00896315]
[1723624794691,0.082102,60876.0,60871.0,0.082108]
[1723624794884,0.3608,60872.0,60871.0,0.082108]
[1723624796200,0.3618,60872.0,60871.0,0.082108]
[1723624798800,0.3628,60872.0,60871.0,0.082108]
[1723624799588,0.3628,60872.0,60871.0,1.217056]
[1723624799897,0.36098029,60875.0,60874.0,0.082104]
[1723624799898,0.00018029,60875.0,60874.0,0.082104]
[1723624800093,0.00018029,60875.0,60874.0,0.602904]
[1723624800403,0.00018029,60875.0,60874.0,1.134904]
[1723624801201,0.00018029,60875.0,60874.0,1.190904]
[1723624801799,0.00018029,60875.0,60874.0,0.790904]
[1723624801992,0.00018029,60875.0,60874.0,1.190904]
[1723624802498,0.00118029,60875.0,60874.0,1.248504]
[1723624803495,0.14693547,60892.0,60877.0,0.0821]
[1723624803496,0.3608,60892.0,60877.0,0.0821]
[1723624803699,0.3608,60892.0,60891.0,0.082081]
[1723624805301,0.3610463,60898.0,60895.0,0.082075]
[1723624805800,0.3610463,60898.0,60892.0,0.082079]
[1723624805801,0.082076,60895.0,60892.0,0.082079]
[1723624806098,0.3610463,60898.0,60888.0,0.1189]
[1723624806099,0.3608,60893.0,60890.0,0.04917761]
[1723624806405,0.42645841,60898.0,60895.0,0.082076]
[1723624806592,0.082073,60897.0,60895.0,0.082076]
[1723624806793,0.082074,60896.0,60891.0,0.082081]
[1723624807105,0.14748611,60896.0,60891.0,0.082081]
[1723624807400,0.082074,60896.0,60892.0,0.082079]
[1723624807898,0.082074,60896.0,60893.0,0.082078]
[1723624808305,0.001,60895.0,60893.0,0.082078]
[1723624808693,0.082074,60896.0,60894.0,0.574717]
[1723624808694,0.001,60896.0,60894.0,0.574717]
[1723624808898,0.001,60896.0,60895.0,0.448052]
[1723624809195,0.001,60896.0,60895.0,0.574716]
[1723624809594,0.001,60896.0,60895.0,0.974716]
[1723624809998,0.001,60896.0,60895.0,1.02389361]
[1723624810205,0.002,60896.0,60895.0,0.574716]
[1723624810397,0.002,60896.0,60895.0,0.58380639]
[1723624811106,0.002,60896.0,60895.0,0.09116639]
[1723624811295,0.001,60896.0,60895.0,0.58380639]
[1723624811500,0.002,60896.0,60895.0,0.59202615]
[1723624811697,0.002,60896.0,60895.0,0.58380639]
[1723624812506,0.001,60896.0,60895.0,0.58380639]
[1723624812801,0.002,60896.0,60895.0,0.10353311]
[1723624813203,0.002,60896.0,60895.0,0.09516639]
[1723624813697,0.002,60896.0,60895.0,0.10353558]
[1723624814907,0.0002463,60898.0,60897.0,0.082073]
[1723624815103,0.082058,60909.0,60904.0,0.082063]
[1723624816105,0.3608,60905.0,60904.0,0.082063]
[1723624818002,0.082058,60908.0,60904.0,0.082063]
[1723624819213,0.192058,60908.0,60904.0,0.082063]
[1723624820503,0.002,60905.0,60904.0,0.082063]
[1723624822712,0.002,60905.0,60904.0,0.0891839]
[1723624822901,0.3608,60906.0,60905.0,0.082062]
[1723624823211,0.0002463,60913.0,60912.0,0.082053]
[1723624824709,0.0002463,60913.0,60910.0,0.082055]
[1723624825206,0.3608,60911.0,60908.0,0.082058]
[1723624825411,0.3608,60911.0,60905.0,0.082062]
[1723624825603,0.3608,60910.0,60905.0,0.082062]
[1723624826511,0.082058,60909.0,60906.0,0.08206]
[1723624827307,0.3608,60910.0,60908.0,0.003]
[1723624827505,0.0012463,60913.0,60907.0,0.082059]
[1723624827708,0.001,60910.0,60907.0,0.082059]
[1723624828806,0.001,60910.0,60905.0,0.003]
[1723624829107,0.082058,60909.0,60905.0,0.085061]
[1723624829515,0.082058,60909.0,60906.0,0.08206]
[1723624830520,0.083058,60909.0,60906.0,0.08306]
[1723624830709,0.001,60909.0,60907.0,0.082059]
[1723624830909,0.002,60909.0,60907.0,0.082059]
[1723624831610,0.3628,60909.0,60907.0,0.082059]
[1723624831808,0.002,60909.0,60907.0,0.082059]
[1723624833304,0.002,60909.0,60906.0,0.005]
[1723624833513,0.001,60909.0,60908.0,0.13123561]
[1723624833812,0.0002463,60913.0,60912.0,0.082053]
[1723624835718,0.0002463,60913.0,60912.0,0.13514657]
[1723624836011,0.0002463,60913.0,60912.0,0.086053]
[1723624836526,0.0002463,60913.0,60912.0,0.09315092]
[1723624837808,0.0002463,60913.0,60912.0,0.16161035]
[1723624838213,0.0002463,60913.0,60912.0,0.09615092]
[1723624838618,0.00727217,60925.0,60912.0,0.09615092]
[1723624838619,0.14744911,60924.0,60916.0,0.082047]
[1723624838922,0.082037,60924.0,60920.0,0.082042]
[1723624839218,0.162037,60924.0,60921.0,0.04909936]
[1723624839817,0.08,60924.0,60922.0,0.082039]
[1723624840714,0.082034,60927.0,60922.0,0.082039]
[1723624841020,0.082034,60926.0,60922.0,0.082039]
[1723624841517,0.082034,60926.0,60920.0,0.04909936]
[1723624841518,0.082034,60926.0,60923.0,0.082038]
[1723624841718,0.082034,60926.0,60920.0,0.04909936]
[1723624841719,0.06541211,60928.0,60924.0,0.082036]
[1723624841919,0.07541211,60928.0,60924.0,0.082036]
[1723624842218,0.092031,60928.0,60924.0,0.082036]
[1723624842403,0.092031,60928.0,60920.0,0.05637163]
[1723624842404,0.092031,60928.0,60925.0,0.082034]
[1723624842606,0.42645775,60929.0,60920.0,0.05637163]
[1723624842809,0.36104564,60929.0,60928.0,0.082031]
[1723624843017,0.00024564,60929.0,60928.0,0.726731]
[1723624843219,0.00024564,60929.0,60928.0,1.701162]
[1723624843410,0.00024564,60929.0,60928.0,1.619131]
[1723624843615,0.00024564,60929.0,60928.0,1.77735623]
[1723624845019,0.00024564,60929.0,60928.0,1.78235623]
[1723624845820,0.00124564,60929.0,60928.0,1.78235623]
[1723624846016,0.00124564,60929.0,60928.0,1.090231]
[1723624846219,0.08327564,60929.0,60928.0,0.005]
[1723624846817,0.13837564,60929.0,60928.0,0.005]
[1723624847814,0.13937564,60929.0,60928.0,0.008]
[1723624848323,0.442823,60935.0,60928.0,0.008]
[1723624848324,0.0652973,60936.0,60929.0,0.49236]
[1723624848522,0.0495293,60946.0,60935.0,1.0055]
[1723624848817,0.08161506,60953.0,60945.0,0.803608]
[1723624849015,0.08161506,60953.0,60952.0,0.3608]
[1723624849216,0.08161506,60955.0,60952.0,0.3608]
[1723624849727,0.19611506,60956.0,60952.0,0.3608]
[1723624850311,0.015,60953.0,60952.0,0.3608]
[1723624850615,0.082007,60946.0,60945.0,0.30361611]
[1723624852124,0.482007,60946.0,60945.0,0.30361611]
[1723624852427,0.482007,60946.0,60939.0,0.36104609]
[1723624852428,0.082015,60940.0,60939.0,0.00024609]
[1723624852812,0.3608,60941.0,60939.0,0.00024609]
[1723624853013,0.1154,60940.0,60939.0,0.00024609]
[1723624854020,0.1174,60940.0,60939.0,0.00024609]
[1723624855525,0.199415,60940.0,60939.0,0.00024609]
[1723624855726,0.200415,60940.0,60939.0,0.00024609]
[1723624858014,0.27785874,60940.0,60939.0,0.00024609]
[1723624858219,0.30444707,60940.0,60937.0,0.3608]
[1723624858417,0.18604907,60939.0,60937.0,0.3608]
[1723624858623,0.10403207,60938.0,60937.0,0.3608]
[1723624859218,0.10403207,60938.0,60935.0,0.2839]
[1723624859418,0.10403207,60937.0,60936.0,0.3608]
[1723624859622,0.02658833,60937.0,60936.0,0.3608]
[1723624859819,0.10403207,60937.0,60936.0,0.3608]
[1723624860216,0.10403207,60937.0,60936.0,0.442821]
[1723624860622,0.23285849,60940.0,60936.0,0.442821]
[1723624860623,0.10424933,60939.0,60937.0,0.082019]
[1723624860927,0.1164,60940.0,60937.0,0.082019]
[1723624860928,0.10424933,60938.0,60937.0,0.082019]
[1723624862028,0.10424933,60938.0,60937.0,0.084019]
[1723624862430,0.10424933,60938.0,60937.0,0.082019]
[1723624862727,0.10424933,60938.0,60937.0,0.084019]
[1723624862927,0.59656933,60938.0,60937.0,0.002]
[1723624863126,0.49232,60937.0,60931.0,0.00024609]
[1723624863332,0.082026,60932.0,60931.0,0.00024609]
[1723624863630,0.54707533,60932.0,60916.0,0.3249]
[1723624863928,0.082046,60917.0,60915.0,0.3608]
[1723624864231,0.19588769,60916.0,60915.0,0.3608]
[1723624864531,0.57333205,60916.0,60915.0,0.3608]
[1723624864734,0.44281633,60916.0,60915.0,0.3608]
[1723624865429,0.54576885,60916.0,60915.0,0.3608]
[1723624865628,0.54576885,60916.0,60915.0,0.30333923]
[1723624865829,0.44202571,60916.0,60915.0,0.30333923]
[1723624866232,0.44202571,60916.0,60909.0,0.00024609]
[1723624866233,0.082056,60910.0,60909.0,0.00024609]
[1723624866530,0.5301,60916.0,60909.0,0.00024609]
[1723624866732,0.5301,60916.0,60909.0,0.08230209]
[1723624867128,0.5301,60916.0,60912.0,0.2839]
[1723624867432,0.5301,60916.0,60915.0,0.001]
[1723624867729,0.4159,60916.0,60915.0,0.001]
[1723624869936,0.0551,60916.0,60915.0,0.001]
[1723624872636,0.0551,60916.0,60913.0,0.3608]
[1723624873427,0.0561,60916.0,60915.0,0.011]
[1723624873832,0.0561,60916.0,60915.0,0.016]
[1723624874527,0.0571,60916.0,60915.0,0.005]
[1723624875434,0.139147,60916.0,60915.0,0.005]
[1723624877924,0.139147,60916.0,60915.0,0.011]
[1723624878543,0.138147,60916.0,60915.0,0.006]
[1723624878838,0.082054,60911.0,60910.0,0.3608]
[1723624879539,0.082049,60915.0,60910.0,0.3608]
[1723624879845,0.082051,60914.0,60910.0,0.3608]
[1723624880445,0.082051,60913.0,60910.0,0.3608]
[1723624881342,0.082051,60913.0,60909.0,0.00024609]
[1723624881734,0.082053,60912.0,60909.0,0.00024609]
[1723624882146,0.082053,60912.0,60910.0,0.007]
[1723624882345,0.082054,60911.0,60910.0,0.007]
[1723624883548,0.082054,60911.0,60910.0,0.013]
[1723624883744,0.083054,60911.0,60910.0,0.013]
[1723624885753,0.083054,60911.0,60901.0,0.00013482]
[1723624885754,0.082066,60902.0,60901.0,0.00013482]
[1723624886547,0.164132,60902.0,60901.0,0.00013482]
[1723624886849,0.082079,60893.0,60888.0,0.3608]
[1723624887149,0.3608,60903.0,60888.0,0.3608]
[1723624887150,0.082074,60897.0,60892.0,0.082079]
[1723624887752,0.00013482,60896.0,60892.0,0.082079]
[1723624889148,0.00013482,60896.0,60894.0,0.3608]
[1723624890649,0.00113482,60896.0,60894.0,0.3608]
[1723624891358,0.00113482,60896.0,60895.0,0.082076]
[1723624891656,0.00213482,60896.0,60895.0,0.082076]
[1723624892949,0.082062,60906.0,60902.0,0.082066]
[1723624893455,0.082062,60906.0,60900.0,0.2839]
[1723624893456,0.082063,60905.0,60900.0,0.2839]
[1723624893752,0.082064,60904.0,60900.0,0.2839]
[1723624893954,0.082064,60904.0,60898.0,0.0823183]
[1723624894148,0.082064,60904.0,60899.0,0.08207]
[1723624894849,0.082064,60904.0,60900.0,0.082068]
[1723624895047,0.082065,60904.0,60898.0,0.05691129]
[1723624895352,0.0002463,60908.0,60898.0,0.00784489]
[1723624895551,0.0002463,60908.0,60898.0,0.00984489]
[1723624895552,0.001,60904.0,60898.0,0.00984489]
[1723624896260,0.082068,60902.0,60898.0,0.00984489]
[1723624896856,0.001,60904.0,60900.0,0.003]
[1723624897055,0.083064,60904.0,60900.0,0.003]
[1723624897554,0.084064,60904.0,60899.0,0.4919364]
[1723624897744,0.082066,60903.0,60899.0,0.44287]
[1723624898753,0.082067,60902.0,60899.0,0.3608]
[1723624898954,0.082068,60901.0,60899.0,0.3648]
[1723624900656,0.082068,60901.0,60900.0,0.002]
[1723624901357,0.082068,60901.0,60899.0,0.3648]
[1723624901358,0.083068,60901.0,60899.0,0.3668]
[1723624901749,0.082069,60900.0,60899.0,0.3668]
[1723624902155,0.082069,60900.0,60899.0,0.3648]
[1723624902565,0.082069,60900.0,60899.0,0.3608]
[1723624903257,0.08207,60899.0,60898.0,0.0002463]
[1723624904663,0.14087,60899.0,60898.0,0.0002463]
[1723624905159,0.55897,60899.0,60898.0,0.0002463]
[1723624905756,0.55997,60899.0,60898.0,0.0022463]
[1723624905964,0.19917,60899.0,60898.0,0.0022463]
[1723624906165,0.14187,60899.0,60898.0,0.0022463]
[1723624906367,0.08307,60899.0,60898.0,0.0022463]
[1723624906856,0.08407,60899.0,60898.0,0.0062463]
[1723624908452,0.002,60899.0,60898.0,0.7330183]
[1723624908658,0.08206,60907.0,60904.0,0.082063]
[1723624908955,0.082063,60905.0,60900.0,0.082068]
[1723624909158,0.082063,60905.0,60899.0,0.1886]
[1723624909358,0.082066,60903.0,60901.0,0.082067]
[1723624911666,0.082066,60902.0,60901.0,0.082067]
[1723624911974,0.082069,60901.0,60899.0,0.00758562]
[1723624912161,0.082069,60901.0,60898.0,0.6457863]
[1723624912468,0.08207,60900.0,60898.0,0.6449463]
[1723624913071,0.08207,60900.0,60898.0,0.65265325]
[1723624913467,0.08207,60900.0,60898.0,0.29185325]
[1723624913857,0.08207,60900.0,60899.0,0.006]
[1723624914267,0.44287,60900.0,60899.0,0.006]
[1723624914463,0.52494,60900.0,60899.0,0.006]
[1723624914663,0.52594,60900.0,60899.0,0.006]
[1723624915261,0.55254787,60900.0,60899.0,0.006]
[1723624916067,0.52594,60900.0,60899.0,0.006]
[1723624917563,0.52594,60900.0,60899.0,0.009]
[1723624917764,0.16514,60900.0,60899.0,0.009]
[1723624918170,0.08307,60900.0,60899.0,0.009]
[1723624918564,0.93647,60900.0,60899.0,0.009]
[1723624918967,1.418539,60900.0,60899.0,0.009]
[1723624919168,0.083069,60900.0,60899.0,0.009]
[1723624919673,0.001,60900.0,60899.0,0.003]
[1723624920070,0.002,60900.0,60899.0,0.003]
[1723624920263,0.07450672,60900.0,60898.0,0.05724981]
[1723624920472,0.09810403,60899.0,60898.0,0.005]
[1723624920775,0.18017403,60899.0,60898.0,0.005]
[1723624921164,0.3638,60900.0,60899.0,0.06723237]
[1723624921165,0.13412941,60900.0,60899.0,0.06723237]
[1723624921371,0.003,60900.0,60899.0,0.06723237]
[1723624921569,0.003,60900.0,60898.0,0.005]
[1723624921769,0.18325891,60899.0,60898.0,0.005]
[1723624922181,0.18325891,60899.0,60898.0,0.0125236]
[1723624922370,0.18325891,60899.0,60898.0,0.005]
[1723624923175,0.18325891,60899.0,60898.0,0.01263138]
[1723624923475,0.09731903,60899.0,60896.0,0.082074]
[1723624923668,0.09731903,60898.0,60897.0,0.082073]
[1723624924375,0.082074,60896.0,60893.0,0.0002463]
[1723624924574,0.17939503,60895.0,60893.0,0.0002463]
[1723624924874,0.09731903,60894.0,60893.0,0.0002463]
[1723624925176,0.17939603,60894.0,60893.0,0.0002463]
[1723624925378,0.55155922,60894.0,60893.0,0.0002463]
[1723624925583,0.7075095,60894.0,60893.0,0.0002463]
[1723624925878,0.7075095,60894.0,60882.0,0.3608]
[1723624925879,0.082089,60886.0,60882.0,0.3608]
[1723624926179,0.082089,60886.0,60883.0,0.04920568]
[1723624926679,0.082089,60886.0,60883.0,0.13129668]
[1723624926869,0.14762845,60886.0,60883.0,0.13129668]
[1723624927075,0.14762845,60886.0,60883.0,0.082091]
[1723624927271,0.06553945,60885.0,60883.0,0.082091]
[1723624928075,0.06553945,60885.0,60882.0,0.36829366]
[1723624928279,0.082097,60879.0,60877.0,0.41000568]
[1723624928577,0.082097,60879.0,60877.0,0.3608]
[1723624928978,0.08192431,60882.0,60877.0,0.6447]
[1723624929170,0.0654525,60880.0,60879.0,0.082096]
[1723624929370,0.0593,60883.0,60879.0,0.082096]
[1723624929574,0.00372001,60886.0,60883.0,0.082091]
[1723624929767,0.002,60886.0,60883.0,0.082091]
[1723624929967,0.06545107,60884.0,60883.0,0.082091]
[1723624930174,0.06745107,60886.0,60885.0,0.082089]
[1723624930675,0.001,60885.0,60882.0,0.3608]
[1723624930877,0.082092,60883.0,60882.0,0.3608]
[1723624931076,0.06645089,60885.0,60882.0,0.3608]
[1723624931272,0.001,60885.0,60883.0,0.2839]
[1723624931786,0.002,60884.0,60883.0,0.2839]
[1723624932174,0.002,60884.0,60882.0,0.442892]
[1723624932374,0.002,60884.0,60883.0,0.082092]
[1723624932975,0.002,60884.0,60879.0,0.13130268]
[1723624932976,0.082092,60883.0,60879.0,0.13130268]
[1723624933282,0.14754289,60883.0,60879.0,0.13130268]
[1723624933481,0.14754289,60883.0,60879.0,0.082097]
[1723624933874,0.14754289,60883.0,60879.0,0.13130268]
[1723624934074,0.14754289,60883.0,60879.0,0.082097]
[1723624934278,0.082092,60883.0,60879.0,0.14770457]
[1723624934676,0.082092,60883.0,60879.0,0.082097]
[1723624934878,0.082092,60883.0,60880.0,0.082095]
[1723624935079,0.082092,60883.0,60882.0,0.04912855]
[1723624935281,0.083092,60883.0,60881.0,0.04912855]
[1723624935586,0.084092,60883.0,60882.0,0.04912779]
[1723624936176,0.084092,60883.0,60881.0,0.04912779]
[1723624936875,0.085092,60883.0,60881.0,0.04912779]
[1723624937679,0.084092,60883.0,60881.0,0.04912779]
[1723624938078,0.082093,60882.0,60881.0,0.04912779]
[1723624938276,0.082095,60881.0,60880.0,0.04912779]
[1723624938486,0.082095,60881.0,60878.0,0.00016503]